bitfinex/quotes_SOLUSD_20260203
["timestamp","ask_amount","ask_price","bid_price","bid_amount"]
[1770086608708,3.9380366,103.3,103.26,3.96904849]
[1770086608913,9.67916759,103.32,103.27,3.96904849]
[1770086609111,3.9380366,103.3,103.27,3.96904849]
[1770086609614,9.67916759,103.32,103.27,3.96904849]
[1770086609615,3.9380366,103.31,103.27,3.96904849]
[1770086609917,3.9380366,103.31,103.28,13.65146522]
[1770086610422,3.93407207,103.31,103.28,13.65146522]
[1770086613425,3.93407207,103.31,103.29,3.96904849]
[1770086613596,3.93407207,103.34,103.3,3.96904849]
[1770086613919,3.93407207,103.33,103.3,3.96904849]
[1770086614920,3.93407207,103.32,103.3,13.64919935]
[1770086615296,3.93407207,103.31,103.27,26.9]
[1770086615501,3.93407207,103.28,103.25,3.96904849]
[1770086615803,3.93407207,103.26,103.25,3.96904849]
[1770086616013,3.93407207,103.27,103.25,3.96904849]
[1770086616408,3.93407207,103.26,103.24,3.96904849]
[1770086616604,3.93407207,103.25,103.24,3.96904849]
[1770086616819,3.93407207,103.25,103.22,33.90641263]
[1770086617514,7.26465141,103.26,103.22,33.90641263]
[1770086618105,3.93407207,103.27,103.22,37.8404847]
[1770086618305,16.93827159,103.28,103.23,3.93407207]
[1770086618504,16.93827159,103.28,103.22,33.90641263]
[1770086618505,13.00419952,103.28,103.22,33.90641263]
[1770086618705,9.37337616,103.27,103.23,3.37926926]
[1770086619015,9.37337616,103.27,103.24,9.68616815]
[1770086619221,9.37337616,103.27,103.24,13.06543741]
[1770086619722,3.32132112,103.28,103.23,13.06589803]
[1770086619913,9.37337616,103.26,103.24,3.37926926]
[1770086620222,9.37337616,103.27,103.24,3.37926926]
[1770086620402,22.36670553,103.3,103.26,3.37926926]
[1770086620803,9.37337616,103.3,103.26,3.37926926]
[1770086621605,9.37337616,103.3,103.26,13.06274347]
[1770086621809,9.37337616,103.3,103.27,3.37926926]
[1770086622223,9.37337616,103.29,103.26,13.06274347]
[1770086622423,9.37337616,103.28,103.26,13.06274347]
[1770086624528,9.68070292,103.3,103.26,13.06274347]
[1770086624733,9.37337616,103.3,103.27,3.37926926]
[1770086625422,9.37337616,103.29,103.26,3.37926926]
[1770086625732,9.37337616,103.29,103.26,13.06352312]
[1770086625909,12.72593134,103.3,103.27,3.37926926]
[1770086627520,22.40660128,103.3,103.27,3.37926926]
[1770086627719,22.40660128,103.3,103.26,9.68412186]
[1770086627720,12.72593134,103.28,103.26,9.68412186]
[1770086627916,12.72593134,103.29,103.26,13.06339112]
[1770086632432,9.37337616,103.28,103.26,3.37926926]
[1770086632730,12.72593134,103.29,103.26,13.06341415]
[1770086634139,12.92098829,103.3,103.27,13.22264598]
[1770086634337,22.60153393,103.3,103.26,13.22306471]
[1770086634836,9.37337616,103.29,103.26,13.22306471]
[1770086636035,9.37337616,103.29,103.25,24.2126783]
[1770086636036,9.37337616,103.29,103.27,3.53932665]
[1770086636240,9.37337616,103.29,103.26,3.53932665]
[1770086637242,9.37337616,103.29,103.26,13.22300357]
[1770086638439,12.99765116,103.29,103.26,13.22300357]
[1770086638628,12.99765116,103.27,103.24,9.68580538]
[1770086638942,12.99765116,103.27,103.24,13.22513203]
[1770086640062,9.37337616,103.25,103.23,13.22606683]
[1770086640524,3.9383801,103.25,103.23,13.22606683]
[1770086641636,3.63525374,103.26,103.23,13.22606683]
[1770086641637,3.63525374,103.27,103.24,3.53932665]
[1770086641828,7.57363384,103.27,103.24,3.53932665]
[1770086642029,17.2570418,103.27,103.24,3.53932665]
[1770086645342,3.9383801,103.26,103.23,13.22606683]
[1770086645543,3.9383801,103.26,103.24,3.53932665]
[1770086645919,3.9383801,103.26,103.23,9.68674018]
[1770086646125,3.9383801,103.26,103.24,3.53932665]
[1770086648248,17.2570418,103.27,103.24,3.53932665]
[1770086650461,3.9383801,103.26,103.24,3.53932665]
[1770086651163,7.57363384,103.27,103.24,13.22509514]
[1770086651646,7.57363384,103.31,103.27,3.53932665]
[1770086652043,3.9383801,103.31,103.27,3.53932665]
[1770086652629,13.61812214,103.31,103.28,3.53932665]
[1770086652823,17.25267836,103.32,103.28,3.53932665]
[1770086653126,7.57363384,103.32,103.29,3.53932665]
[1770086653326,3.63525374,103.32,103.29,3.53932665]
[1770086654334,7.57363384,103.32,103.29,3.53932665]
[1770086654649,7.57363384,103.32,103.27,37.82938618]
[1770086654650,7.57363384,103.31,103.28,3.53932665]
[1770086655246,17.25282848,103.32,103.28,3.53932665]
[1770086655550,3.63525374,103.31,103.28,3.53932665]
[1770086656460,7.57363384,103.31,103.28,3.53932665]
[1770086656751,3.63525374,103.31,103.28,13.22157907]
[1770086657547,17.25282848,103.32,103.28,13.22157907]
[1770086657935,13.31444838,103.32,103.29,3.53932665]
[1770086658144,3.63525374,103.31,103.28,17.15995917]
[1770086659153,3.63525374,103.32,103.28,17.15995917]
[1770086659551,7.57363384,103.32,103.28,17.15995917]
[1770086660354,3.87441366,103.31,103.28,17.15995917]
[1770086661858,3.87441366,103.3,103.27,17.18055146]
[1770086662654,3.87441366,103.3,103.27,13.24217136]
[1770086663057,13.55349065,103.32,103.29,3.55921815]
[1770086663734,3.9383801,103.32,103.28,7.49759825]
[1770086663934,24.1944287,103.33,103.29,3.55921815]
[1770086663935,13.61644106,103.33,103.29,3.55921815]
[1770086664136,9.67806096,103.33,103.3,3.55921815]
[1770086664441,9.67806096,103.33,103.3,7.49759825]
[1770086665171,13.55247462,103.33,103.3,3.55921815]
[1770086665344,17.49085472,103.33,103.3,3.55921815]
[1770086665546,3.87441366,103.31,103.28,13.24155773]
[1770086667459,3.87441366,103.31,103.28,17.17993783]
[1770086667665,3.87441366,103.32,103.28,17.17993783]
[1770086667861,7.81279376,103.32,103.28,17.17993783]
[1770086668175,3.87441366,103.32,103.29,7.49759825]
[1770086668346,3.87441366,103.32,103.29,17.17837937]
[1770086669071,2.86617194,103.31,103.28,9.6820712]
[1770086669269,2.86617194,103.31,103.25,4.27527085]
[1770086669270,2.86617194,103.29,103.24,3.55921815]
[1770086669449,6.80455204,103.28,103.25,13.24393419]
[1770086670773,12.55864695,103.29,103.26,3.55921815]
[1770086671868,2.88651821,103.3,103.25,37.45700925]
[1770086672169,6.83489651,103.29,103.26,3.55921815]
[1770086672363,2.89651641,103.29,103.26,3.55921815]
[1770086673270,2.89651641,103.29,103.26,13.24312011]
[1770086673868,6.83190926,103.29,103.26,13.24312011]
[1770086674066,2.89651641,103.29,103.26,13.24312011]
[1770086675572,2.92693841,103.26,103.23,27.77487336]
[1770086675760,6.86233126,103.27,103.23,13.24590313]
[1770086676466,2.93758351,103.26,103.23,13.24590313]
[1770086676777,2.93758351,103.25,103.22,13.24669161]
[1770086677071,2.93758351,103.23,103.2,9.68912897]
[1770086677256,2.94810634,103.22,103.19,9.69059927]
[1770086677460,2.94810634,103.22,103.19,13.24981742]
[1770086677757,16.5705334,103.24,103.2,3.55921815]
[1770086677958,2.94810634,103.25,103.21,3.55921815]
[1770086678156,2.94810634,103.25,103.19,9.69059927]
[1770086678157,6.89390116,103.26,103.22,7.494611]
[1770086678361,6.89390116,103.26,103.23,3.55921815]
[1770086678768,2.95850831,103.26,103.23,3.55921815]
[1770086679277,16.57845557,103.26,103.23,3.55921815]
[1770086679773,16.57845557,103.26,103.18,26.9]
[1770086679774,6.90418365,103.24,103.2,13.24841048]
[1770086680671,3.93539285,103.23,103.2,13.24841048]
[1770086681061,3.93539285,103.22,103.2,3.55921815]
[1770086681264,6.92439567,103.23,103.2,3.55921815]
[1770086681965,3.93539285,103.23,103.2,3.55921815]
[1770086682166,12.67591115,103.24,103.2,3.55921815]
[1770086682167,12.67591115,103.24,103.2,13.24910807]
[1770086682367,3.93539285,103.23,103.2,13.24910807]
[1770086683160,3.93539285,103.23,103.2,3.55921815]
[1770086683688,16.61063684,103.24,103.2,13.24890064]
[1770086684081,2.98900282,103.24,103.21,3.55921815]
[1770086684383,16.63956692,103.25,103.21,3.55921815]
[1770086684586,6.95385142,103.24,103.21,3.55921815]
[1770086685285,16.64032378,103.24,103.21,3.55921815]
[1770086685982,16.64911825,103.25,103.22,3.55921815]
[1770086687080,16.64911825,103.25,103.22,13.24725694]
[1770086687299,16.64911825,103.25,103.22,3.55921815]
[1770086687771,6.9823038,103.25,103.22,3.55921815]
[1770086687965,6.9823038,103.24,103.21,3.55921815]
[1770086688175,6.9915709,103.25,103.21,13.24799737]
[1770086688588,6.9915709,103.25,103.22,3.55921815]
[1770086689079,13.62002335,103.26,103.23,3.55921815]
[1770086689390,3.93539285,103.25,103.23,3.55921815]
[1770086689563,7.00073156,103.26,103.23,3.55921815]
[1770086689768,16.68524381,103.26,103.23,3.55921815]
[1770086690165,7.01873842,103.25,103.22,4.08708949]
[1770086690366,9.37832092,103.25,103.22,4.08708949]
[1770086690667,12.4705151,103.25,103.22,4.08708949]
[1770086690974,9.37832092,103.25,103.22,13.7750581]
[1770086692987,22.15502735,103.26,103.22,13.7750581]
[1770086694588,22.15502735,103.26,103.23,13.74240804]
[1770086694770,22.15502735,103.26,103.23,4.05533233]
[1770086695881,12.4705151,103.26,103.23,13.74206106]
[1770086697684,22.2134531,103.27,103.23,13.74206106]
[1770086697886,22.21245987,103.28,103.24,4.05533233]
[1770086698883,12.83426593,103.28,103.24,13.74119641]
[1770086699096,22.21235667,103.28,103.25,4.05533233]
[1770086700392,9.37832092,103.27,103.25,4.05533233]
[1770086700597,12.55359955,103.27,103.23,13.74242864]
[1770086700791,9.37832092,103.25,103.23,4.05533233]
[1770086700992,12.55359955,103.24,103.21,4.05533233]
[1770086701496,22.24746403,103.25,103.22,4.05533233]
[1770086702089,22.25387375,103.26,103.23,4.05533233]
[1770086702295,12.56909538,103.27,103.23,4.05533233]
[1770086702597,22.25292345,103.27,103.23,4.05533233]
[1770086703293,22.25292345,103.27,103.23,13.74201331]
[1770086703489,9.37832092,103.26,103.23,13.74201331]
[1770086703799,3.19838914,103.26,103.23,13.74201331]
[1770086704095,22.26053813,103.27,103.24,4.05533233]
[1770086704293,19.06123767,103.28,103.24,4.05533233]
[1770086704497,19.06123767,103.28,103.25,4.05533233]
[1770086704695,22.26715404,103.28,103.25,4.05533233]
[1770086705080,12.88883312,103.28,103.25,4.05533233]
[1770086705403,0.2,103.37,103.27,4.05533233]
[1770086705604,0.2,103.37,103.21,43.03087331]
[1770086705605,9.37832092,103.28,103.23,4.05533233]
[1770086705908,3.21335713,103.23,103.2,13.74515352]
[1770086706075,12.59903335,103.21,103.18,9.69169723]
[1770086706276,3.22071243,103.23,103.19,13.74618994]
[1770086706490,3.22071243,103.23,103.2,9.68991718]
[1770086706691,12.59903335,103.23,103.19,13.74566913]
[1770086706873,12.59903335,103.23,103.2,4.05533233]
[1770086707283,9.37832092,103.22,103.19,4.05533233]
[1770086707489,9.37832092,103.23,103.2,4.05533233]
[1770086708009,19.06548841,103.23,103.2,4.05533233]
[1770086708509,9.37832092,103.24,103.21,4.05533233]
[1770086708799,19.06464976,103.24,103.21,4.05533233]
[1770086708986,9.37832092,103.23,103.21,4.05533233]
[1770086709190,3.24227531,103.22,103.18,9.6915763]
[1770086709382,12.62059623,103.21,103.17,13.74761751]
[1770086709701,9.68855403,103.22,103.19,4.05533233]
[1770086709702,9.37832092,103.22,103.19,4.05533233]
[1770086710206,22.30817494,103.23,103.19,4.05533233]
[1770086710385,9.37832092,103.22,103.19,4.05533233]
[1770086710580,12.62761937,103.22,103.18,4.05533233]
[1770086710798,9.37832092,103.21,103.18,4.05533233]
[1770086711603,3.24929845,103.22,103.19,4.05533233]
[1770086711604,9.37832092,103.22,103.19,4.05533233]
[1770086711895,31.19527085,103.26,103.2,4.05533233]
[1770086711896,22.32145616,103.24,103.2,4.05533233]
[1770086712104,9.68689431,103.24,103.2,4.05533233]
[1770086712486,19.06521523,103.24,103.2,4.05533233]
[1770086712681,9.37832092,103.23,103.2,4.05533233]
[1770086714382,19.06558345,103.23,103.2,4.05533233]
[1770086714583,22.32794209,103.24,103.21,4.05533233]
[1770086714790,9.37832092,103.23,103.2,4.05533233]
[1770086715395,22.34143199,103.24,103.21,4.05533233]
[1770086715603,22.3470378,103.25,103.21,4.05533233]
[1770086716089,22.3470378,103.25,103.22,4.05533233]
[1770086716288,9.37832092,103.23,103.2,13.74477918]
[1770086716492,12.66809629,103.24,103.21,4.05533233]
[1770086717484,9.37832092,103.24,103.21,4.05533233]
[1770086718016,9.37832092,103.23,103.21,4.05533233]
[1770086718306,3.30265609,103.21,103.18,9.6911745]
[1770086718486,12.68097701,103.21,103.18,13.74650683]
[1770086718691,9.37832092,103.2,103.18,4.05533233]
[1770086720415,12.68097701,103.21,103.18,4.05533233]
[1770086720786,13.0102702,103.22,103.19,4.15299024]
[1770086721004,12.69974859,103.25,103.21,4.15299024]
[1770086722513,9.37832092,103.24,103.21,4.15299024]
[1770086722801,9.37832092,103.23,103.2,4.15299024]
[1770086723182,12.71788073,103.23,103.19,4.15299024]
[1770086723379,12.71788073,103.22,103.19,4.15299024]
[1770086724403,22.40677495,103.22,103.19,4.15299024]
[1770086724615,19.06721514,103.22,103.19,4.15299024]
[1770086724984,9.37832092,103.21,103.19,4.15299024]
[1770086725284,22.41268069,103.22,103.19,4.15299024]
[1770086725695,22.41268069,103.22,103.18,4.15299024]
[1770086726389,9.37832092,103.21,103.18,4.15299024]
[1770086726889,22.42428945,103.22,103.18,4.15299024]
[1770086727386,9.37832092,103.21,103.18,4.15299024]
[1770086727905,9.37832092,103.21,103.17,4.15299024]
[1770086727906,9.37832092,103.2,103.17,4.15299024]
[1770086728203,12.74673884,103.19,103.16,4.15299024]
[1770086728384,3.36841792,103.19,103.16,4.15299024]
[1770086728581,12.74673884,103.19,103.16,4.15299024]
[1770086728999,22.43603307,103.21,103.17,13.84521522]
[1770086729310,22.44070489,103.22,103.19,4.15299024]
[1770086729492,13.06238397,103.22,103.19,4.15299024]
[1770086729695,22.43941957,103.23,103.19,13.84384522]
[1770086729904,12.75231311,103.22,103.19,4.15299024]
[1770086730910,22.44492982,103.23,103.19,13.8437698]
[1770086731087,22.44444064,103.24,103.2,4.15299024]
[1770086731589,19.06261299,103.26,103.23,4.15299024]
[1770086731783,22.44756239,103.26,103.23,4.15299024]
[1770086732215,22.44756239,103.26,103.22,4.15299024]
[1770086732216,9.37832092,103.25,103.22,4.15299024]
[1770086732389,12.76865472,103.25,103.22,4.15299024]
[1770086732590,9.37832092,103.24,103.2,4.15299024]
[1770086732912,9.37832092,103.22,103.19,4.15299024]
[1770086733699,3.39565635,103.23,103.19,4.15299024]
[1770086733700,12.77397727,103.23,103.2,4.15299024]
[1770086734011,22.46142964,103.23,103.2,4.15299024]
[1770086734411,22.46531256,103.23,103.2,4.15299024]
[1770086734805,19.06888348,103.24,103.21,4.15299024]
[1770086735307,9.38220384,103.23,103.21,4.15299024]
[1770086735805,19.06938951,103.23,103.21,4.15299024]
[1770086736013,9.38220384,103.23,103.21,4.15299024]
[1770086736595,22.47497466,103.24,103.21,4.15299024]
[1770086737415,9.38220384,103.22,103.2,4.15299024]
[1770086737909,19.06962423,103.23,103.2,4.15299024]
[1770086738228,9.68742039,103.23,103.2,4.15299024]
[1770086738511,13.10305067,103.24,103.21,4.15299024]
[1770086738690,22.48525451,103.24,103.21,4.15299024]
[1770086740797,46.70067488,103.24,103.21,4.15299024]
[1770086741002,46.70067488,103.24,103.17,24.22956671]
[1770086741003,3.43124119,103.21,103.17,4.15299024]
[1770086741210,9.38220384,103.19,103.15,4.15299024]
[1770086741510,9.38220384,103.19,103.15,13.84714561]
[1770086741511,9.38220384,103.18,103.15,13.84714561]
[1770086741696,12.81829772,103.19,103.15,13.84714561]
[1770086742112,22.50970796,103.19,103.16,4.15299024]
[1770086742290,19.07361408,103.19,103.16,4.15299024]
[1770086743303,19.07415779,103.18,103.16,4.15299024]
[1770086743499,19.07415779,103.18,103.15,4.15299024]
[1770086743701,22.51924352,103.19,103.16,4.15299024]
[1770086743902,19.07361084,103.19,103.16,4.15299024]
[1770086744102,22.52393091,103.19,103.16,4.15299024]
[1770086745005,9.38220384,103.18,103.15,4.15299024]
[1770086745614,9.38220384,103.18,103.15,13.84739908]
[1770086745821,22.52393091,103.19,103.15,13.84739908]
[1770086746121,9.38220384,103.18,103.15,13.84739908]
[1770086746416,9.38220384,103.18,103.16,4.15299024]
[1770086748898,12.85074122,103.18,103.15,9.69440884]
[1770086749212,12.85074122,103.17,103.14,9.69506921]
[1770086749517,12.85074122,103.17,103.14,13.84805945]
[1770086749723,22.54700643,103.18,103.14,13.84805945]
[1770086749922,24.22749735,103.19,103.16,4.15299024]
[1770086749923,13.16426749,103.19,103.16,4.15299024]
[1770086750220,9.38220384,103.17,103.14,4.15299024]
[1770086751005,9.38220384,103.17,103.14,13.8484234]
[1770086753417,22.57397614,103.17,103.14,4.15299024]
[1770086753616,12.88066438,103.16,103.13,13.8949518]
[1770086753810,12.88066438,103.16,103.13,4.19865033]
[1770086754419,7.44443809,103.16,103.13,4.19865033]
[1770086755807,3.94597755,103.15,103.12,13.99586149]
[1770086756123,13.64008015,103.16,103.13,4.19865033]
[1770086756519,3.94597755,103.18,103.14,4.19865033]
[1770086756701,17.14834058,103.18,103.14,4.19865033]
[1770086757112,3.94597755,103.17,103.14,4.19865033]
[1770086757708,17.14834058,103.18,103.14,4.19865033]
[1770086757913,7.45653985,103.18,103.15,13.8931738]
[1770086758112,9.68992248,103.2,103.16,4.19865033]
[1770086758316,5.05968028,103.26,103.18,4.19865033]
[1770086758317,7.46437779,103.22,103.18,4.19865033]
[1770086758612,3.94597755,103.21,103.18,4.19865033]
[1770086759018,7.46437779,103.22,103.19,4.19865033]
[1770086759210,7.46822937,103.23,103.19,4.19865033]
[1770086759412,3.94597755,103.22,103.19,4.19865033]
[1770086759710,7.46822937,103.2,103.16,4.19865033]
[1770086759924,17.15821398,103.2,103.17,4.19865033]
[1770086760121,7.46822937,103.2,103.17,4.19865033]
[1770086760321,3.52605916,103.22,103.19,4.19865033]
[1770086760523,3.52605916,103.23,103.2,4.19865033]
[1770086760744,7.47203671,103.23,103.2,4.19865033]
[1770086760905,3.52605916,103.23,103.2,4.19865033]
[1770086761919,3.94597755,103.21,103.18,9.69139219]
[1770086762122,7.47580032,103.21,103.18,13.89004252]
[1770086762632,12.91838936,103.2,103.17,13.89085095]
[1770086762811,12.91838936,103.21,103.18,4.19865033]
[1770086763017,3.53354316,103.21,103.18,13.89040249]
[1770086763235,3.53354316,103.21,103.18,4.19865033]
[1770086763607,12.91838936,103.21,103.18,4.19865033]
[1770086764019,22.60758344,103.21,103.17,13.89089933]
[1770086764232,22.60758344,103.21,103.18,4.19865033]
[1770086765836,12.92929607,103.2,103.17,4.19865033]
[1770086766015,12.92929607,103.18,103.15,13.89280473]
[1770086766215,22.62390662,103.19,103.15,13.89280473]
[1770086766429,12.93284844,103.18,103.14,13.8938127]
[1770086766617,12.93284844,103.17,103.14,13.8938127]
[1770086766825,12.93284844,103.17,103.14,13.89413845]
[1770086767631,12.93284844,103.17,103.12,33.72801043]
[1770086767632,3.55151382,103.18,103.15,13.8932097]
[1770086767831,22.62678404,103.2,103.16,13.89223825]
[1770086768138,12.93983126,103.19,103.16,13.89223825]
[1770086768339,12.93983126,103.19,103.16,4.19865033]
[1770086770137,31.19527085,103.21,103.16,9.3848462]
[1770086770138,13.66011705,103.21,103.16,9.3848462]
[1770086770322,12.94665458,103.21,103.17,4.19865033]
[1770086770635,3.56180838,103.21,103.18,4.19865033]
[1770086770837,9.3848462,103.19,103.16,4.19865033]
[1770086771036,9.6898652,103.21,103.17,4.19865033]
[1770086771337,9.3848462,103.21,103.17,4.19865033]
[1770086771518,12.95000758,103.21,103.17,4.19865033]
[1770086771718,12.95000758,103.2,103.16,13.58349653]
[1770086771915,24.22069258,103.22,103.17,13.89116801]
[1770086771916,22.63940219,103.21,103.17,13.89116801]
[1770086772120,3.56847586,103.19,103.15,37.82004524]
[1770086772522,3.56847586,103.19,103.16,9.69321894]
[1770086772724,9.3848462,103.18,103.15,4.19865033]
[1770086772923,9.3848462,103.18,103.15,13.89324206]
[1770086773739,12.95659848,103.18,103.15,4.19865033]
[1770086773941,9.3848462,103.19,103.16,4.19865033]
[1770086774238,22.64698924,103.2,103.17,4.19865033]
[1770086774430,12.95983726,103.19,103.16,4.19865033]
[1770086775618,12.95983726,103.19,103.16,13.89226371]
[1770086775942,9.3848462,103.19,103.16,13.89226371]
[1770086777117,19.07580424,103.19,103.16,13.89226371]
[1770086778340,9.3848462,103.18,103.16,4.19865033]
[1770086778726,13.27853646,103.19,103.15,13.89279492]
[1770086778927,9.3848462,103.18,103.15,13.89279492]
[1770086779140,22.6674708,103.18,103.15,4.19865033]
[1770086779443,9.3848462,103.17,103.15,4.19865033]
[1770086780540,9.3848462,103.17,103.14,13.84604863]
[1770086781643,12.98444357,103.17,103.14,13.84604863]
[1770086782443,12.98736252,103.18,103.15,4.15077903]
[1770086783344,22.67929027,103.18,103.15,4.15077903]
[1770086783943,12.99024794,103.17,103.14,4.15077903]
[1770086784743,9.3848462,103.16,103.14,4.15077903]
[1770086785861,19.07856502,103.16,103.13,13.84676237]
[1770086786061,19.07856502,103.16,103.13,4.15077903]
[1770086786062,9.3848462,103.16,103.13,4.15077903]
[1770086786263,22.69272094,103.16,103.13,4.15077903]
[1770086786456,9.3848462,103.14,103.12,4.25077903]
[1770086786752,12.99870689,103.15,103.12,4.25077903]
[1770086787451,22.69353539,103.15,103.12,4.25077903]
[1770086787646,12.99870689,103.15,103.12,13.94821135]
[1770086787850,19.07906717,103.16,103.13,4.15077903]
[1770086788152,9.69422097,103.16,103.13,4.15077903]
[1770086788743,19.07906717,103.16,103.13,4.15077903]
[1770086790551,19.07906717,103.16,103.13,9.69636074]
[1770086790782,22.69438569,103.17,103.14,4.15077903]
[1770086792262,22.69438569,103.17,103.14,13.84621436]
[1770086792631,22.69438569,103.17,103.14,4.15077903]
[1770086792835,9.69292368,103.17,103.14,4.15077903]
[1770086793238,19.07776988,103.17,103.14,4.15077903]
[1770086794352,19.08511912,103.17,103.14,4.15077903]
[1770086794660,9.39219544,103.17,103.14,4.15077903]
[1770086796141,9.39219544,103.17,103.15,4.15077903]
[1770086796341,3.9446997,103.17,103.15,4.15077903]
[1770086796542,37.56178477,103.18,103.15,4.15077903]
[1770086796543,13.33228293,103.18,103.15,4.15077903]
[1770086796844,9.69225228,103.18,103.15,4.15077903]
[1770086797246,3.9446997,103.17,103.15,4.15077903]
[1770086803168,28.50264094,103.19,103.16,4.15077903]
[1770086803169,17.2927111,103.19,103.16,4.15077903]
[1770086803469,7.60133126,103.18,103.15,13.84536734]
[1770086804066,7.60133126,103.18,103.15,4.15077903]
[1770086804260,3.65889542,103.17,103.14,13.84580814]
[1770086804470,7.60359512,103.18,103.15,13.8452396]
[1770086804966,17.29571795,103.18,103.15,4.15077903]
[1770086805149,13.35101825,103.18,103.15,4.15077903]
[1770086805349,17.29571795,103.18,103.15,4.15077903]
[1770086809871,13.35101825,103.18,103.15,4.15077903]
[1770086810070,13.36395333,103.2,103.16,4.20322829]
[1770086810277,13.36395333,103.2,103.17,4.20322829]
[1770086810979,13.36395333,103.2,103.15,4.03063299]
[1770086810980,7.62079456,103.18,103.15,4.03063299]
[1770086811162,3.67813517,103.19,103.15,4.03063299]
[1770086811369,13.36805765,103.2,103.17,4.03063299]
[1770086811556,17.31275735,103.2,103.17,4.03063299]
[1770086813075,120.94686413,103.21,103.18,4.03063299]
[1770086813375,26.94,103.22,103.18,4.03063299]
[1770086813376,17.31551948,103.22,103.18,4.03063299]
[1770086814280,3.9446997,103.21,103.18,4.03063299]
[1770086815181,3.9446997,103.21,103.17,13.72334298]
[1770086815182,3.68606471,103.2,103.17,13.72334298]
[1770086815373,17.32010444,103.21,103.18,4.03063299]
[1770086815575,7.63076441,103.2,103.17,4.03063299]
[1770086816254,7.63076441,103.2,103.17,13.72330619]
[1770086816455,7.63076441,103.2,103.17,4.03063299]
[1770086817178,17.32097002,103.2,103.17,4.03063299]
[1770086817479,3.68606471,103.2,103.17,13.72305853]
[1770086817874,13.6340028,103.21,103.17,13.72305853]
[1770086817875,13.37919727,103.21,103.18,4.03063299]
[1770086818054,17.3248212,103.22,103.19,4.03063299]
[1770086818459,17.32388684,103.23,103.19,4.03063299]
[1770086818654,13.37824185,103.24,103.21,4.03063299]
[1770086819566,3.69363617,103.23,103.2,13.72003347]
[1770086819759,3.69363617,103.24,103.21,4.03063299]
[1770086819965,13.37985516,103.24,103.21,4.03063299]
[1770086820480,3.695475,103.22,103.19,4.03063299]
[1770086820981,7.6401747,103.22,103.19,4.03063299]
[1770086821478,7.6401747,103.22,103.14,112.70383193]
[1770086821479,3.6972927,103.19,103.16,4.03063299]
[1770086821675,7.6419924,103.21,103.17,13.7233559]
[1770086822078,3.69908953,103.2,103.17,13.7233559]
[1770086822582,7.64378923,103.22,103.19,4.03063299]
[1770086822767,3.69908953,103.22,103.19,4.03063299]
[1770086822970,9.68756202,103.23,103.2,4.03063299]
[1770086823685,3.70086571,103.23,103.2,4.03063299]
[1770086825082,3.7026215,103.22,103.18,17.6666258]
[1770086825261,3.7026215,103.22,103.19,13.72131486]
[1770086825466,7.6473212,103.22,103.19,4.03063299]
[1770086825666,7.6473212,103.22,103.19,13.7212299]
[1770086825875,3.70435712,103.21,103.18,13.72193045]
[1770086826171,17.33711548,103.22,103.19,4.03063299]
[1770086827173,17.34052714,103.22,103.18,13.72193045]
[1770086827377,17.34052714,103.22,103.19,4.03063299]
[1770086827888,3.70776878,103.21,103.18,13.72193045]
[1770086828685,17.34220364,103.22,103.18,13.72193045]
[1770086828881,17.34220364,103.22,103.18,17.66663015]
[1770086830381,13.39763096,103.22,103.19,4.03063299]
[1770086830692,17.34233066,103.22,103.19,4.03063299]
[1770086832392,9.68818568,103.22,103.19,4.03063299]
[1770086834895,9.68818568,103.22,103.19,13.72141549]
[1770086835093,13.63227795,103.23,103.2,4.03063299]
[1770086835301,13.40703932,103.24,103.21,4.03063299]
[1770086835473,9.68568431,103.25,103.22,4.03063299]
[1770086835869,13.40633811,103.25,103.22,4.03063299]
[1770086837277,3.7206538,103.25,103.22,13.71866249]
[1770086837477,13.62857081,103.27,103.23,4.03063299]
[1770086837770,13.40756436,103.27,103.24,4.03063299]
[1770086838289,17.35272783,103.28,103.25,4.03063299]
[1770086839571,3.72666327,103.27,103.24,13.7165338]
[1770086839979,17.35566374,103.28,103.25,3.99830688]
[1770086840200,17.35710645,103.28,103.25,3.99830688]
[1770086841592,13.41200169,103.28,103.25,3.99830688]
[1770086841797,17.35670139,103.28,103.25,3.99830688]
[1770086842897,17.35913265,103.29,103.26,3.99830688]
[1770086843478,3.73379494,103.27,103.24,17.62862162]
[1770086843698,7.67849464,103.26,103.23,3.99830688]
[1770086843893,4.26926993,103.23,103.18,3.9446997]
[1770086844097,3.9446997,103.22,103.19,9.69086151]
[1770086844481,9.38283546,103.22,103.19,9.69086151]
[1770086844682,13.65210539,103.23,103.19,9.69086151]
[1770086845490,23.33922662,103.23,103.19,9.69086151]
[1770086845690,23.33688659,103.26,103.21,9.38283546]
[1770086845997,23.33688659,103.26,103.22,3.99830688]
[1770086846404,9.38283546,103.25,103.22,3.99830688]
[1770086846603,13.65210539,103.24,103.21,3.99830688]
[1770086846779,4.26926993,103.21,103.17,13.69057711]
[1770086846979,9.38283546,103.2,103.17,13.69057711]
[1770086847398,13.65210539,103.22,103.19,3.99830688]
[1770086847600,9.38283546,103.21,103.19,3.99830688]
[1770086847901,11.26355791,103.2,103.17,13.69057243]
[1770086848503,13.65210539,103.19,103.16,3.99830688]
[1770086848706,13.65210539,103.18,103.15,3.99830688]
[1770086849287,9.38283546,103.17,103.15,3.99830688]
[1770086850005,13.65210539,103.16,103.13,3.99830688]